bitfinex-derivatives/quotes_SOLF0:USTF0_20250106
["timestamp","ask_amount","ask_price","bid_price","bid_amount"]
[1736176639139,4.2068,221.49,221.35,3.28]
[1736176639441,3.28,221.5,221.44,2.258]
[1736176639642,18.88719734,221.54,221.35,22.16719734]
[1736176639844,2.2576,221.49,221.45,2.2579]
[1736176640239,18.88719734,221.54,221.41,3.28]
[1736176640434,18.88719734,221.54,221.46,2.2578]
[1736176640941,18.88719734,221.58,221.41,3.28]
[1736176641141,18.88719734,221.58,221.42,2.8166]
[1736176641840,18.88719734,221.54,221.25,57.95301699]
[1736176642040,2.258,221.45,221.4,2.2584]
[1736176642242,2.258,221.45,221.33,6.0966]
[1736176642543,2.258,221.45,221.41,2.2584]
[1736176642744,18.88719734,221.5,221.36,3.28]
[1736176643046,2.9251,221.49,221.33,2.8166]
[1736176643342,4.3656,221.49,221.34,3.28]
[1736176643538,18.88719734,221.46,221.33,2.8166]
[1736176643740,18.88719734,221.46,221.34,5.539]
[1736176643941,18.88719734,221.46,221.31,3.28]
[1736176644340,18.88719734,221.46,221.35,2.2589]
[1736176644539,2.2582,221.43,221.35,2.2589]
[1736176644746,18.88719734,221.46,221.37,2.2588]
[1736176644948,18.88719734,221.46,221.31,3.28]
[1736176645246,2.2585,221.41,221.31,3.28]
[1736176645442,18.88719734,221.46,221.36,2.2588]
[1736176645943,18.88719734,221.46,221.38,2.2586]
[1736176646248,18.88719734,221.42,221.29,3.28]
[1736176646443,2.2591,221.35,221.29,3.28]
[1736176646741,2.2591,221.35,221.31,2.2594]
[1736176646944,2.2588,221.37,221.29,3.28]
[1736176647945,2.2588,221.37,221.31,2.2594]
[1736176648148,2.2588,221.37,221.29,3.28]
[1736176648538,2.2589,221.36,221.32,2.2592]
[1736176648742,2.2589,221.36,221.29,3.28]
[1736176649343,18.88719734,221.46,221.29,3.28]
[1736176649549,22.16719734,221.46,221.31,18.88719734]
[1736176650044,2.2583,221.43,221.31,18.88719734]
[1736176650248,22.16719734,221.46,221.31,18.88719734]
[1736176650745,2.2581,221.44,221.39,2.2585]
[1736176650941,3.28,221.46,221.35,3.28]
[1736176651248,2.2582,221.43,221.39,2.2585]
[1736176651746,7.6456,221.49,221.35,3.28]
[1736176651946,2.2584,221.41,221.35,3.28]
[1736176652346,18.88719734,221.46,221.37,2.2587]
[1736176652543,18.88719734,221.46,221.35,3.28]
[1736176652947,18.88719734,221.46,221.36,2.2589]
[1736176653447,2.2587,221.38,221.35,5.539]
[1736176653648,2.2587,221.38,221.35,3.28]
[1736176653948,2.2587,221.38,221.35,5.539]
[1736176654148,18.88719734,221.46,221.35,3.28]
[1736176654748,2.2587,221.38,221.35,5.539]
[1736176655343,2.2586,221.39,221.35,5.539]
[1736176656351,2.2586,221.39,221.35,2.259]
[1736176658253,2.2586,221.39,221.36,2.2588]
[1736176658454,2.2583,221.42,221.32,3.28]
[1736176658852,4.3656,221.49,221.4,2.2585]
[1736176659053,7.6456,221.49,221.32,3.28]
[1736176659248,2.2583,221.43,221.32,3.28]
[1736176659455,7.6456,221.49,221.37,2.2588]
[1736176659955,2.2584,221.42,221.38,2.2587]
[1736176660357,7.6456,221.49,221.32,3.28]
[1736176660557,4.3656,221.49,221.42,2.2582]
[1736176660953,18.88719734,221.54,221.38,3.28]
[1736176661153,18.88719734,221.54,221.47,2.2577]
[1736176661457,2.2574,221.51,221.47,2.2577]
[1736176661660,4.7473,221.56,221.4,1.433]
[1736176662360,2.2573,221.52,221.48,2.2576]
[1736176662657,4.7473,221.56,221.4,1.433]
[1736176662859,2.2574,221.51,221.4,1.433]
[1736176663054,18.88719734,221.54,221.41,3.28]
[1736176663653,2.2576,221.49,221.44,2.258]
[1736176663960,18.88719734,221.54,221.44,2.258]
[1736176664162,18.88719734,221.54,221.39,3.28]
[1736176664466,2.258,221.45,221.41,2.2583]
[1736176664651,2.258,221.45,221.39,3.28]
[1736176665664,18.88719734,221.54,221.39,3.28]
[1736176666851,2.2578,221.47,221.42,2.2582]
[1736176667057,18.88719734,221.45,221.32,25.40822253]
[1736176667357,2.2586,221.4,221.36,2.2588]
[1736176667561,18.88719734,221.45,221.32,23.94562253]
[1736176667867,1.4512,221.44,221.32,5.98640563]
[1736176668157,2.2585,221.4,221.32,5.98640563]
[1736176668363,1.4512,221.44,221.32,5.98640563]
[1736176668657,1.4512,221.44,221.29,3.28]
[1736176669057,2.2586,221.4,221.36,2.2588]
[1736176669563,1.4512,221.44,221.29,3.28]
[1736176669759,2.2584,221.42,221.37,2.2588]
[1736176669957,1.4512,221.44,221.29,3.28]
[1736176670153,2.2584,221.41,221.36,2.2588]
[1736176670464,1.4215,221.46,221.35,3.28]
[1736176670857,2.2582,221.44,221.35,3.28]
[1736176671258,2.2583,221.43,221.39,2.2586]
[1736176671460,2.2583,221.43,221.35,3.28]
[1736176671864,2.2583,221.43,221.39,2.2585]
[1736176672964,1.4215,221.46,221.35,3.28]
[1736176673661,2.2578,221.46,221.38,2.2586]
[1736176673864,2.2578,221.46,221.35,22.16719734]
[1736176673865,1.5174,221.47,221.35,22.16719734]
[1736176674259,1.5174,221.47,221.4,2.2584]
[1736176674855,2.258,221.45,221.41,2.2583]
[1736176675060,1.5174,221.47,221.35,22.16719734]
[1736176675061,1.5174,221.47,221.35,3.28]
[1736176675257,2.963,221.47,221.35,3.28]
[1736176675567,2.963,221.47,221.31,18.88719734]
[1736176675763,2.963,221.47,221.32,3.28]
[1736176675957,2.2582,221.43,221.37,2.2586]
[1736176676164,2.963,221.47,221.32,3.28]
[1736176677171,2.963,221.47,221.37,2.2586]
[1736176677568,2.963,221.47,221.32,3.28]
[1736176678170,2.963,221.47,221.35,18.88719734]
[1736176678371,1.5174,221.47,221.35,18.88719734]
[1736176679461,1.4453,221.51,221.35,18.88719734]
[1736176679668,1.4453,221.51,221.36,1.4166]
[1736176680474,1.4453,221.51,221.37,2.9381]
[1736176680773,2.9499,221.56,221.39,18.88719734]
[1736176681074,2.9499,221.56,221.43,18.88719734]
[1736176681263,2.9499,221.56,221.44,3.28]
[1736176682568,2.257,221.54,221.44,3.28]
[1736176682769,2.9499,221.56,221.44,3.28]
[1736176683164,2.9499,221.56,221.51,2.2572]
[1736176683165,2.2569,221.55,221.51,2.2572]
[1736176683970,5.2067,221.56,221.47,2.2576]
[1736176684272,2.2568,221.56,221.44,3.28]
[1736176684475,1.4691,221.61,221.47,18.88719734]
[1736176684668,3.28,221.65,221.48,2.847]
[1736176685064,2.2561,221.64,221.51,18.88719734]
[1736176685268,2.2561,221.64,221.52,3.28]
[1736176685468,1.417,221.68,221.52,3.28]
[1736176685678,18.88719734,221.66,221.52,3.28]
[1736176686866,2.2567,221.58,221.53,2.2571]
[1736176687175,2.2567,221.58,221.45,1.5107]
[1736176687176,18.88719734,221.62,221.46,3.28]
[1736176687976,2.2569,221.55,221.5,2.2573]
[1736176688173,18.88719734,221.62,221.46,22.16719734]
[1736176688573,2.2566,221.58,221.53,2.257]
[1736176688774,2.2566,221.58,221.46,22.16719734]
[1736176688975,3.28,221.63,221.46,22.16719734]
[1736176689576,2.2566,221.58,221.51,2.2573]
[1736176689776,2.2566,221.58,221.46,22.16719734]
[1736176689975,3.28,221.63,221.46,3.28]
[1736176690178,2.2565,221.59,221.53,2.257]
[1736176690579,2.2564,221.61,221.56,2.2568]
[1736176690778,18.88719734,221.66,221.52,3.28]
[1736176690982,1.417,221.68,221.53,3.28]
[1736176691276,2.2557,221.67,221.56,11.82812943]
[1736176691884,1.417,221.68,221.61,2.2562]
[1736176692279,3.6727,221.68,221.63,2.2561]
[1736176692480,1.417,221.68,221.56,11.82812943]
[1736176693089,1.417,221.68,221.54,18.92421568]
[1736176693285,1.4914,221.69,221.58,18.92421568]
[1736176693491,3.28,221.75,221.65,2.2559]
[1736176693788,4.6597,221.75,221.65,2.2559]
[1736176693992,1.3797,221.75,221.65,2.2559]
[1736176694188,4.6597,221.75,221.68,2.2556]
[1736176694393,1.3797,221.75,221.62,18.92421568]
[1736176694688,2.255,221.74,221.62,18.92421568]
[1736176695091,1.3797,221.75,221.62,18.92421568]
[1736176695588,2.9935,221.77,221.63,2.8328]
[1736176696095,1.4624,221.83,221.66,18.92421568]
[1736176696392,1.4624,221.83,221.67,3.28]
[1736176696592,2.2545,221.79,221.73,2.255]
[1736176696893,1.4624,221.83,221.73,2.255]
[1736176697292,1.4624,221.83,221.72,2.2551]
[1736176697489,1.4624,221.83,221.67,3.28]
[1736176697991,18.92421568,221.79,221.66,3.28]
[1736176698189,2.2553,221.71,221.66,3.28]
[1736176698390,22.20421568,221.79,221.67,2.2556]
[1736176698691,22.20421568,221.79,221.66,3.28]
[1736176698692,2.2551,221.73,221.66,3.28]
[1736176698995,22.20421568,221.79,221.66,3.28]
[1736176699191,2.2551,221.73,221.66,3.28]
[1736176699391,3.28,221.79,221.66,3.28]
[1736176699591,3.28,221.79,221.69,2.2554]
[1736176699793,22.20421568,221.79,221.66,3.28]
[1736176699993,22.20421568,221.79,221.63,2.8328]
[1736176700996,2.2549,221.75,221.63,2.8328]
[1736176701490,3.28,221.79,221.71,2.2552]
[1736176702198,1.5085,221.86,221.73,2.255]
[1736176702494,18.92421568,221.84,221.68,3.28]
[1736176703192,2.2544,221.8,221.72,2.2552]
[1736176703393,18.92421568,221.84,221.68,3.28]
[1736176703586,2.8759,221.85,221.69,18.92421568]
[1736176703791,2.2543,221.81,221.73,2.255]
[1736176703991,2.2543,221.81,221.69,18.92421568]
[1736176704191,2.8759,221.85,221.69,18.92421568]
[1736176704689,18.92421568,221.84,221.68,3.28]
[1736176704996,2.2546,221.78,221.66,1.3913]
[1736176705194,18.92421568,221.84,221.67,3.28]
[1736176705695,2.2547,221.77,221.72,2.2551]
[1736176705896,2.2547,221.77,221.67,3.28]
[1736176706290,2.8759,221.85,221.69,18.92421568]
[1736176706692,2.2544,221.8,221.75,2.2549]
[1736176706894,2.8759,221.85,221.7,3.28]
[1736176707298,2.2542,221.81,221.76,2.2547]
[1736176707498,2.8759,221.85,221.76,2.2547]
[1736176707801,2.8759,221.85,221.7,3.28]
[1736176708698,2.8759,221.85,221.77,2.2546]
[1736176709095,2.2542,221.82,221.77,2.2546]
[1736176709394,2.2542,221.82,221.66,1.3913]
[1736176709395,1.4272,221.85,221.8,2.2542]
[1736176709799,1.4272,221.85,221.77,3.28]
[1736176710296,1.4272,221.85,221.73,1.3959]
[1736176710501,2.2543,221.81,221.76,2.2547]
[1736176711008,2.2542,221.82,221.78,2.2545]
[1736176711295,2.2542,221.82,221.73,1.3959]
[1736176711296,1.4272,221.85,221.73,1.3959]
[1736176711502,2.2543,221.81,221.76,2.2547]
[1736176711694,1.4272,221.85,221.73,1.3959]
[1736176711899,22.20421568,221.84,221.72,3.28]
[1736176712199,23.64571568,221.84,221.72,3.28]
[1736176712501,20.36571568,221.84,221.72,3.28]
[1736176712698,2.2545,221.79,221.72,3.28]
[1736176712898,20.36571568,221.84,221.72,3.28]
[1736176713200,2.2548,221.76,221.72,3.28]
[1736176713401,11.81283448,221.79,221.67,3.28]
[1736176713793,11.81283448,221.76,221.65,3.28]
[1736176714197,2.2553,221.71,221.67,2.2556]
[1736176714398,11.81283448,221.76,221.65,3.28]
[1736176714603,11.81283448,221.76,221.62,15.09283448]
[1736176714797,3.28,221.77,221.61,2.8482]
[1736176714798,11.81283448,221.73,221.61,2.8482]
[1736176715000,11.81283448,221.73,221.61,3.28]
[1736176715303,2.2559,221.65,221.6,2.2564]
[1736176715494,2.2559,221.65,221.57,3.28]
[1736176716104,2.2558,221.67,221.59,11.81283448]
[1736176716294,11.81283448,221.73,221.57,3.28]
[1736176716500,11.81283448,221.73,221.61,2.2563]
[1736176716805,11.81283448,221.7,221.61,2.2563]
[1736176716998,18.92439144,221.73,221.61,2.2563]
[1736176717303,1.3883,221.74,221.56,6.0385]
[1736176717304,18.92439144,221.69,221.56,6.0385]
[1736176717500,22.20439144,221.69,221.56,3.28]
[1736176717703,18.92439144,221.65,221.53,4.34532608]
[1736176718000,4.2731,221.64,221.53,4.34532608]
[1736176718206,2.2566,221.58,221.53,4.34532608]
[1736176718403,4.2731,221.64,221.53,4.34532608]
[1736176718902,2.2565,221.59,221.54,2.257]
[1736176719495,2.2567,221.58,221.53,4.34532608]
[1736176719694,2.2567,221.58,221.5,47.39556501]
[1736176720099,3.28,221.63,221.5,47.39556501]
[1736176720505,18.92439144,221.61,221.5,47.39556501]
[1736176720709,2.2569,221.55,221.5,47.39556501]
[1736176721005,18.92439144,221.61,221.5,47.39556501]
[1736176721206,2.2565,221.6,221.54,2.257]
[1736176721702,2.2563,221.61,221.55,2.2569]
[1736176722106,3.28,221.63,221.5,47.39556501]
[1736176722307,3.28,221.63,221.53,2.257]
[1736176722511,2.2567,221.57,221.5,47.39556501]
[1736176722699,18.92439144,221.61,221.5,2.2574]
[1736176723004,18.92439144,221.61,221.47,3.28]
[1736176723208,2.2567,221.58,221.52,2.2572]
[1736176723412,18.92439144,221.61,221.52,2.2572]
[1736176723804,2.257,221.54,221.44,2.8591]
[1736176724004,18.92439144,221.53,221.39,22.20439144]
[1736176724209,1.3782,221.52,221.37,4.34848891]
[1736176724410,2.2578,221.46,221.4,2.2584]
[1736176724611,18.92439144,221.49,221.4,2.2584]
[1736176724807,2.2579,221.46,221.4,2.2584]
[1736176725106,18.92439144,221.49,221.4,2.2584]
[1736176725314,1.3782,221.52,221.41,2.2583]
[1736176725607,2.2578,221.47,221.41,2.2583]
[1736176725800,1.3782,221.52,221.43,2.258]
[1736176726001,1.3782,221.52,221.37,4.34848891]
[1736176726413,1.3782,221.52,221.39,18.92439144]
[1736176726806,1.3782,221.52,221.4,2.8545]
[1736176727007,1.3782,221.52,221.49,2.2575]
[1736176727204,3.28,221.55,221.43,18.92439144]
[1736176727408,18.92439144,221.61,221.49,2.2575]
[1736176727608,3.28,221.6,221.49,2.2575]
[1736176728210,2.2571,221.53,221.43,18.92439144]
[1736176728418,2.2571,221.53,221.47,2.2576]
[1736176728704,18.92439144,221.57,221.41,3.28]
[1736176728913,3.28,221.6,221.43,2.2581]
[1736176728914,2.2575,221.5,221.43,2.2581]
[1736176729117,18.92439144,221.53,221.43,2.2581]
[1736176729415,4.1883,221.52,221.43,2.2581]
[1736176729607,3.28,221.54,221.39,3.28]
[1736176729812,3.28,221.54,221.45,2.2579]
[1736176730008,2.2574,221.51,221.39,3.28]
[1736176730213,3.28,221.54,221.39,3.28]
[1736176730618,4.1883,221.53,221.39,3.28]
[1736176731116,2.2575,221.49,221.44,2.258]
[1736176731317,4.1883,221.53,221.39,3.28]
[1736176731520,4.1883,221.53,221.39,22.20439144]
[1736176731710,2.2574,221.51,221.39,22.20439144]
[1736176732113,4.1883,221.53,221.39,22.20439144]
[1736176732420,4.1883,221.53,221.39,3.28]
[1736176733118,2.2577,221.48,221.44,2.258]
[1736176733321,4.1883,221.53,221.39,3.28]
[1736176733619,2.2574,221.51,221.46,2.2578]
[1736176734020,4.1883,221.53,221.46,2.2578]
[1736176734420,2.2573,221.51,221.46,2.2578]
[1736176734815,2.2573,221.51,221.39,3.28]
[1736176735116,4.1883,221.53,221.39,22.20439144]
[1736176735423,3.28,221.59,221.39,22.20439144]
[1736176735620,3.28,221.59,221.49,2.2575]
[1736176735919,2.2571,221.53,221.49,2.2575]
[1736176736418,2.257,221.54,221.49,2.2575]
[1736176736618,3.28,221.59,221.49,2.2575]
[1736176736819,3.28,221.59,221.48,2.2576]
[1736176737016,2.2572,221.52,221.48,2.2576]
[1736176737712,3.28,221.59,221.45,3.28]
[1736176737915,2.2575,221.49,221.45,2.2579]
[1736176738119,2.8801,221.64,221.41,3.28]
[1736176738422,18.92439144,221.58,221.41,3.28]
[1736176738712,18.92439144,221.54,221.41,3.28]
[1736176739115,2.7967,221.53,221.41,3.28]
[1736176739511,2.7967,221.53,221.44,2.2579]
[1736176740016,2.2576,221.49,221.44,2.2579]
[1736176740217,2.7967,221.53,221.41,3.28]
[1736176740621,2.2578,221.47,221.44,2.258]
[1736176740913,2.7967,221.53,221.39,22.20439144]
[1736176741312,2.7967,221.53,221.49,2.2574]
[1736176741313,1.3796,221.53,221.49,2.2574]
[1736176741514,1.3796,221.53,221.39,22.20439144]
[1736176741917,1.3796,221.53,221.48,2.2575]
[1736176742225,1.3796,221.53,221.39,22.20439144]
[1736176743618,1.3796,221.53,221.4,3.28]
[1736176744219,3.28,221.56,221.4,3.28]
[1736176744427,2.2573,221.51,221.47,2.2577]
[1736176744620,4.7903,221.56,221.4,3.28]
[1736176745014,2.2571,221.53,221.5,2.2574]
[1736176745827,18.92439144,221.55,221.48,2.2575]
[1736176746326,2.2572,221.52,221.48,2.2575]
[1736176746823,2.2572,221.52,221.4,3.28]
[1736176747023,18.92439144,221.55,221.4,3.28]
[1736176747221,2.2571,221.53,221.4,3.28]
[1736176747623,2.2571,221.53,221.49,2.2575]
[1736176747826,18.92439144,221.55,221.4,3.28]
[1736176748022,2.2573,221.52,221.4,3.28]
[1736176748220,1.5103,221.56,221.43,18.92439144]
[1736176748424,1.4666,221.58,221.43,18.92439144]
[1736176748727,1.4666,221.58,221.52,2.2571]
[1736176749220,2.2569,221.56,221.53,2.2571]
[1736176749520,3.28,221.62,221.47,3.28]
[1736176749918,1.4487,221.63,221.47,22.20439144]
[1736176749919,4.7287,221.63,221.47,22.20439144]
[1736176750121,2.2563,221.61,221.48,2.8634]
[1736176750323,1.4487,221.63,221.51,18.92439144]
[1736176750525,22.20439144,221.69,221.51,18.92439144]
[1736176750720,2.2561,221.64,221.51,18.92439144]
[1736176750922,18.92439144,221.65,221.48,2.8634]
[1736176751221,2.838,221.64,221.48,2.8634]
[1736176751422,18.92439144,221.61,221.48,2.8634]
[1736176751622,18.92439144,221.61,221.45,27.09502698]
[1736176751823,18.92439144,221.61,221.45,9.23375674]
[1736176752128,18.92439144,221.61,221.49,2.2575]
[1736176752525,18.92439144,221.61,221.45,9.23375674]
[1736176752723,2.2568,221.57,221.49,2.2575]
[1736176752924,18.92439144,221.61,221.45,3.28]
[1736176753119,3.28,221.63,221.45,3.28]
[1736176753923,2.2567,221.57,221.52,2.2571]
[1736176754125,2.2567,221.57,221.45,3.28]
[1736176755228,2.2567,221.57,221.48,2.2575]
[1736176755425,2.2569,221.55,221.45,3.28]
[1736176756225,2.2569,221.55,221.44,1.4492]
[1736176756226,3.28,221.62,221.44,1.4492]
[1736176756527,3.28,221.62,221.43,18.92439144]
[1736176756528,2.2572,221.52,221.43,22.20439144]
[1736176756929,2.2572,221.52,221.48,2.2575]
[1736176757130,2.2571,221.53,221.43,22.20439144]
[1736176757827,18.92439144,221.58,221.43,22.20439144]
[1736176758227,22.20439144,221.62,221.43,22.20439144]
[1736176758423,22.20439144,221.62,221.53,2.257]
[1736176758424,2.2567,221.58,221.53,2.257]
[1736176758627,22.20439144,221.62,221.53,2.257]
[1736176758827,22.20439144,221.62,221.43,22.20439144]
[1736176759027,2.257,221.54,221.5,2.2574]
[1736176759233,22.20439144,221.62,221.43,46.5747906]
[1736176760232,2.257,221.55,221.43,28.29699123]
[1736176760432,22.20439144,221.62,221.43,28.29699123]
[1736176760829,2.257,221.54,221.43,28.29699123]
[1736176761029,2.257,221.54,221.43,22.20439144]
[1736176761631,2.257,221.54,221.5,2.2574]
[1736176761841,2.2569,221.55,221.43,22.20439144]
[1736176762330,3.28,221.61,221.5,2.2573]
[1736176762836,2.2571,221.54,221.43,22.20439144]
[1736176763033,3.28,221.61,221.49,2.2575]
[1736176763535,18.92439144,221.58,221.47,2.2577]
[1736176763732,18.92439144,221.58,221.43,3.28]
[1736176763932,2.2572,221.53,221.43,3.28]
[1736176764332,3.28,221.61,221.5,2.2574]
[1736176764531,2.2571,221.54,221.5,2.2574]
[1736176764734,3.28,221.61,221.43,22.20439144]
[1736176765235,2.2572,221.52,221.48,2.2575]
[1736176765434,2.2572,221.52,221.44,11.840939]
[1736176765634,2.2572,221.52,221.48,2.2575]
[1736176766140,11.840939,221.58,221.48,2.2575]
[1736176766336,11.840939,221.58,221.49,2.2575]
[1736176767437,11.840939,221.58,221.48,2.2576]
[1736176767438,2.2573,221.52,221.48,2.2576]
[1736176767835,2.257,221.54,221.5,2.2573]
[1736176768035,15.120939,221.61,221.5,2.2573]
[1736176768231,15.120939,221.61,221.44,11.840939]
[1736176768433,2.2572,221.53,221.49,2.2575]
[1736176769242,11.840939,221.64,221.5,11.840939]
[1736176769441,137.87285734,221.75,221.5,11.840939]
[1736176769442,4.3348,221.66,221.5,11.840939]
[1736176769640,4.3348,221.66,221.57,2.2567]
[1736176769641,2.2562,221.63,221.57,2.2567]
[1736176769941,4.3348,221.66,221.53,11.840939]
[1736176770240,2.2566,221.58,221.54,2.257]
[1736176770443,11.840939,221.6,221.51,3.28]
[1736176770632,11.840939,221.6,221.49,6.09259979]
[1736176770944,2.257,221.54,221.5,2.2573]
[1736176772244,2.2568,221.56,221.48,3.26]
[1736176772542,11.840939,221.6,221.51,2.2573]
[1736176773241,11.840939,221.64,221.48,3.26]
[1736176773441,2.2566,221.59,221.48,3.26]
[1736176773635,11.840939,221.64,221.54,2.2569]
[1736176773834,11.840939,221.61,221.54,2.2569]
[1736176774037,2.2567,221.57,221.54,2.2569]
[1736176774247,11.840939,221.61,221.48,3.26]
[1736176775147,2.2568,221.57,221.53,2.257]
[1736176775447,2.2568,221.57,221.48,3.26]
[1736176775647,11.840939,221.61,221.46,36.21133816]
[1736176775841,11.840939,221.58,221.47,3.26]
[1736176776041,11.840939,221.58,221.47,9.35259979]
[1736176776947,11.840939,221.58,221.47,3.26]
[1736176777548,2.2569,221.55,221.52,2.2571]
[1736176777742,11.840939,221.58,221.47,3.26]
[1736176778144,2.2569,221.55,221.47,3.26]
[1736176778843,2.2572,221.52,221.49,2.2575]
[1736176779344,11.840939,221.58,221.49,2.2575]
[1736176779544,2.2571,221.53,221.5,2.2573]
[1736176780253,2.2574,221.5,221.47,2.2576]
[1736176780450,11.840939,221.52,221.43,24.37039916]
[1736176781044,2.2575,221.49,221.45,2.2579]
[1736176781245,11.840939,221.52,221.45,2.2579]
[1736176781444,11.840939,221.52,221.42,6.09259979]
[1736176781750,2.2576,221.48,221.44,2.258]
[1736176782450,2.2578,221.47,221.44,2.258]
[1736176782646,11.840939,221.46,221.4,6.09259979]
[1736176782846,11.840939,221.43,221.4,6.09259979]
[1736176783245,11.840939,221.43,221.39,32.9220086]
[1736176783246,23.681878,221.43,221.39,32.9220086]
[1736176783454,11.840939,221.4,221.38,48.74079834]
[1736176783745,2.2586,221.38,221.33,50.99989834]
[1736176784051,11.840939,221.4,221.33,48.74079834]
[1736176784350,2.2587,221.38,221.33,50.99989834]
[1736176784742,2.2587,221.38,221.33,2.2591]
[1736176785852,11.840939,221.35,221.22,48.74079834]
[1736176786546,2.2592,221.33,221.29,2.2595]
[1736176786759,11.840939,221.32,221.2,6.31146512]
[1736176786944,2.2594,221.31,221.26,2.2598]
[1736176787142,11.840939,221.32,221.2,6.31146512]
[1736176787347,11.840939,221.32,221.2,2.8201]
[1736176787849,14.100139,221.32,221.2,2.8201]
[1736176788049,11.840939,221.29,221.2,2.8201]
[1736176788248,11.840939,221.29,221.22,2.2602]
[1736176788249,2.2598,221.27,221.22,2.2602]
[1736176788449,11.840939,221.26,221.19,4.3519352]
[1736176788752,11.840939,221.26,221.2,2.2604]
[1736176788952,3.26,221.29,221.19,4.3519352]
[1736176788953,3.26,221.28,221.19,4.3519352]
[1736176789456,2.2596,221.28,221.22,2.2602]
[1736176789654,11.840939,221.32,221.19,4.3519352]
[1736176790252,11.840939,221.29,221.19,4.3519352]
[1736176790652,2.2598,221.27,221.19,4.3519352]
[1736176790955,11.840939,221.29,221.19,4.3519352]
[1736176791153,3.26,221.3,221.19,4.3519352]
[1736176791557,11.840939,221.32,221.28,2.2595]
[1736176791758,11.840939,221.32,221.19,4.3519352]
[1736176792859,14.100239,221.32,221.26,2.2598]
[1736176793759,2.2594,221.31,221.25,2.2599]
[1736176794556,11.840939,221.32,221.26,2.2598]
[1736176795057,16.163539,221.35,221.21,15.100939]
[1736176795257,13.347339,221.35,221.24,11.840939]
[1736176795455,11.840939,221.35,221.24,11.840939]
[1736176795965,11.840939,221.35,221.3,2.2594]
[1736176796760,11.840939,221.35,221.31,2.2593]
[1736176796957,11.840939,221.38,221.25,2.9257]
[1736176797358,11.840939,221.38,221.33,2.2591]
[1736176797962,11.840939,221.38,221.25,2.9257]
[1736176798564,14.099539,221.38,221.33,2.2591]
[1736176798954,11.840939,221.38,221.25,2.9257]
[1736176799158,2.2588,221.36,221.31,2.2592]
[1736176799664,2.2588,221.36,221.25,2.9257]
[1736176799665,2.2591,221.34,221.28,2.2596]
[1736176799867,2.2591,221.34,221.25,2.9257]
[1736176800163,11.840939,221.38,221.25,2.9257]
[1736176800560,11.840939,221.38,221.27,11.840939]
[1736176800761,4.3807,221.42,221.3,11.840939]
[1736176800961,3.26,221.46,221.33,11.840939]
[1736176801165,15.100939,221.47,221.33,3.26]
[1736176801468,11.840939,221.44,221.33,3.26]
[1736176801765,11.840939,221.44,221.31,11.840939]
[1736176802062,11.840939,221.44,221.31,15.100939]
[1736176802459,2.2584,221.41,221.36,2.2588]
[1736176802659,2.2584,221.41,221.31,15.100939]
[1736176803063,2.2584,221.41,221.37,2.2587]
[1736176803564,11.840939,221.44,221.31,15.100939]
[1736176803762,11.840939,221.44,221.38,2.2586]
[1736176803966,2.2577,221.48,221.37,11.840939]
[1736176804160,11.840939,221.5,221.37,11.840939]
[1736176804358,11.840939,221.5,221.42,2.2581]
[1736176804558,11.840939,221.5,221.37,15.100939]
[1736176804761,2.2577,221.47,221.37,15.100939]
[1736176804962,11.840939,221.5,221.44,2.258]
[1736176805267,2.2577,221.48,221.37,15.100939]
[1736176805469,4.4756,221.53,221.4,11.840939]